Cogmind - Beta 13 @@@ ROGUE MODE // 2024.04.08 @ 23:43:45 Player: Calliope Result: Destroyed by U7-KPV(R) with Subdweller Shrapnel Launcher Performance ------------- Evolutions (0) 0 Regions Visited (2) 400 Robots Destroyed (18) 90 Value Destroyed (473) 473 Prototype IDs (0) 0 Alien Tech Used (0) 0 Bonus (0) 0 TOTAL SCORE: 963 Bonus ------- None Cogmind --------- Core Integrity 0/250 Matter 260/300 Energy 98/100 System Corruption 1% Temperature Cool (1) Movement Walking (120) Location -10/Subcaves Parts ------- > --- POWER (1) -------- (None) > --- PROPULSION (2) --- Aluminum Leg > --- UTILITY (2) ------ Small Storage Unit > --- WEAPON (2) ------- (None) > --- INVENTORY (8) ---- Light Treads Aluminum Leg Targeting Computer Makeshift Light Armor Plating Light Assault Rifle Subdweller Machine Gun Peak State ------------ > --- POWER ------------ Ion Engine > --- PROPULSION ------- Aluminum Leg Aluminum Leg > --- UTILITY ---------- Small Storage Unit Structural Scanner > --- WEAPON ----------- Subdweller Shrapnel Launcher Hammer > --- INVENTORY -------- Light Treads Aluminum Leg Targeting Computer Makeshift Light Armor Plating Light Assault Rifle Light Assault Rifle Subdweller Machine Gun Subdweller Shrapnel Launcher [Rating: 9] Favorites ----------- Power Ion Engine Engine Ion Engine Propulsion Aluminum Leg Treads Light Treads Leg Aluminum Leg Utility Small Storage Unit Device Structural Scanner Storage Small Storage Unit Protection Backup Plating I Weapon Hammer Ballistic Gun Light Assault Rifle Launcher Subdweller Shrapnel Launcher Impact Weapon Hammer Build | -11 -10 -10 ------- Run | Yrd Mat Sub Slots Evolved . | . . . Power . | . . . Propulsion . | . . . Utility . | . . . Weapon . | . . . Parts Attached 20 | 6 9 5 Power 2 | 1 . 1 Engine 2 | 1 . 1 Core . | . . . Reactor . | . . . Propulsion 8 | 2 5 1 Treads 2 | 2 . . Leg 6 | . 5 1 Wheel . | . . . Hover . | . . . Flight . | . . . Utility 3 | 1 1 1 Device 1 | . 1 . Storage 2 | 1 . 1 Processor . | . . . Hackware . | . . . Protection . | . . . Artifact . | . . . Weapon 7 | 2 3 2 Energy Gun . | . . . Energy Cannon . | . . . Ballistic Gun 3 | 2 1 . Ballistic Cannon . | . . . Launcher 2 | . . 2 Special Weapon . | . . . Impact Weapon 2 | . 2 . Slashing Weapon . | . . . Piercing Weapon . | . . . Special Melee Weapon . | . . . Unidentified Prototypes . | . . . Parts Lost 11 | . 5 6 Power 2 | . 1 1 Propulsion 3 | . 2 1 Utility 2 | . 1 1 Weapon 4 | . 1 3 Highest Loss Streak 6 | . 3 6 To Critical Strikes 1 | . . 1 Average Slot Usage (%) 90 | . 87 98 Engine 10 | . 9 13 Treads 8 | . 12 . Leg 18 | . 13 28 Device 10 | . 9 14 Storage 13 | . 14 13 Protection 1 | . 2 . Ballistic Gun 10 | . 15 . Launcher 4 | . . 13 Impact Weapon 9 | . 8 13 Naked Turns . | . . . Heaviest Build 21 | 12 15 21 Greatest Support 40 | 40 40 20 Greatest Overweight (x) 1 | . 1 1 Average Overweight (x) . | . . . Largest Inventory Capacity 8 | 8 8 8 Average Capacity 7 | 7 8 7 Most Carried 8 | 1 7 8 Average Carried 4 | . 3 6 Final Capacity 8 | 8 8 8 Final Carried 8 | 1 6 8 Class Distribution -------------------- 100% | Mutant Dominant Class ---------------- Mutant | -10/Materials Mutant | -10/Subcaves Resources | -11 -10 -10 ----------- Run | Yrd Mat Sub Matter Collected 492 | 221 204 67 Remotely . | . . . Salvage Created 539 | . 415 124 Parts 34 | . 31 3 Haulers Intercepted . | . . . Recyclers Shooed . | . . . Parts Field Recycled . | . . . Retrieved Matter . | . . . Parts Self-Destructed . | . . . Prevented . | . . . Kills | -11 -10 -10 ------- Run | Yrd Mat Sub Combat Hostiles Destroyed 16 | . 13 3 Melee 5 | . 5 . Guns 8 | . 8 . Classes Destroyed 5 | . 4 1 Operator 1 | . 1 . Watcher 1 | . 1 . Swarmer 6 | . 6 . Grunt 7 | . 7 . Subdweller 3 | . . 3 Best Kill Streak 7 | . 7 1 Combat Bots Only 6 | . 6 1 Max Kills in Single Turn 2 | . 2 1 Gunslinging 1 | . 1 . Exploded . | . . . Melee 1 | . 1 . Uniques/NPCs Destroyed . | . . . Combat | -11 -10 -10 -------- Run | Yrd Mat Sub Hostile Shots Fired 144 | . 116 28 Missed 41 | . 32 9 Damage Taken 1474 | . 822 652 Core 295 | . 108 187 Absorbed by Shields . | . . . Regen/Repaired (Parts) 39 | . 39 . Core Remaining (%) 100 | 100 . . Volleys Fired 32 | . 30 2 Largest 2 | . 2 1 Hottest 40 | . 40 40 Shots Fired 61 | . 59 2 Gun 59 | . 59 . Cannon . | . . . Launcher 2 | . . 2 Special . | . . . Kinetic 61 | . 59 2 Thermal . | . . . Explosive . | . . . Electromagnetic . | . . . Robot Hit Streak 11 | . 11 1 Robot Miss Streak 5 | . 5 2 Penetration Max . | . . . Secondary Targets 4 | . 4 . Max Gunslinging Chain 1 | . 1 . Shots Hit Robots 63 | . 54 9 Core Hits 20 | . 19 1 Critical Kills 1 | . 1 . Critical Parts Destroyed 2 | . . 2 Critical Strikes 3 | . 1 2 Smash 3 | . 1 2 Melee Attacks 66 | . 41 25 Impact 66 | . 41 25 Slashing . | . . . Piercing . | . . . Sneak Attacks . | . . . Combat Hostiles . | . . . Follow-up Attacks . | . . . Damage Inflicted 1188 | . 868 320 Guns 364 | . 364 . Cannons . | . . . Explosions 117 | . . 117 Melee 707 | . 504 203 Ramming . | . . . Kinetic 481 | . 364 117 Thermal . | . . . Explosive . | . . . Electromagnetic . | . . . Impact 707 | . 504 203 Slashing . | . . . Piercing . | . . . Highest Corruption 1 | . 1 1 Average Corruption 1 | . 1 1 Corruption Purged . | . . . Corruption Blocked . | . . . Effects 15 | . 12 3 Message Errors 3 | . 2 1 Matter Fused 5 | . 3 2 Heat Flow Errors 2 | . 2 . Energy Discharges 2 | . 2 . Data Loss (minor) 1 | . 1 . Alerts 1 | . 1 . Weapon Failures 1 | . 1 . Overload Shots . | . . . Overflow Damage 80 | . 9 71 Projectiles . | . . . Explosions . | . . . Melee 80 | . 9 71 Knockbacks . | . . . Impact . | . . . Kinetic . | . . . Secondary . | . . . Self-Inflicted Damage . | . . . Shots . | . . . Rammed . | . . . Targets Rammed . | . . . Kicked . | . . . Crushed . | . . . Highest Temperature 213 | . 213 . Average Temperature 29 | . 29 . Received Heat Transfer 300 | . 291 9 Siege Activations . | . . . Robots Corrupted . | . . . Combat Hostiles . | . . . Parts Fried 3 | . . 3 Impact Corruptions 4 | . 1 3 Robots Melted . | . . . Combat Hostiles . | . . . Parts Melted . | . . . Heat Transferred . | . . . Parts Sabotaged . | . . . Parts Stolen . | . . . Parts Stripped . | . . . Power Chain Reactions . | . . . Alert | -11 -10 -10 ------- Run | Yrd Mat Sub Peak Influence 228 | . 228 . Initial . | . . . Average 72 | . 81 . Maximum Alert Level 1 | . 1 . Low Security (%) 91 | 100 90 . Level 1 8 | . 9 . Level 2 . | . . . Level 3 . | . . . Level 4 . | . . . Level 5 . | . . . High Security . | . . . Max Security . | . . . Squads Dispatched 1 | . 1 . Investigation 1 | . 1 . Extermination . | . . . Reinforcement . | . . . Assault . | . . . Garrison . | . . . Intercept . | . . . Searches Triggered . | . . . Construction Impeded . | . . . Haulers Reinforced . | . . . Active Scanning Responses . | . . . Cargo Convoy Interrupts . | . . . Stealth | -11 -10 -10 --------- Run | Yrd Mat Sub Distress Signals 1 | . 1 . Communications Jammed . | . . . Distress Signals . | . . . Times Spotted 26 | . 20 6 Peak Tracking Total 7 | . 7 3 Tactical Retreats 2 | . 2 . Traps | -11 -10 -10 ------- Run | Yrd Mat Sub Traps Triggered 1 | . 1 . Indirectly . | . . . Trap Hack Attempts . | . . . Triggered . | . . . Disarmed . | . . . Reprogrammed . | . . . Reused . | . . . Traps Extracted . | . . . Installed . | . . . Triggered . | . . . Machines | -11 -10 -10 ---------- Run | Yrd Mat Sub Machines Disabled 1 | . 1 . Max in Single Turn 1 | . 1 . Machines Repaired . | . . . Machines Dismantled . | . . . Machines Sabotaged . | . . . Overloaded Fab Kills . | . . . Hacking | -11 -10 -10 --------- Run | Yrd Mat Sub Machines Accessed 9 | . 9 . Terminals 7 | . 7 . Fabricators . | . . . Repair Stations 1 | . 1 . Recycling Units 1 | . 1 . Scanalyzers . | . . . Garrison Access . | . . . Total Hacks 23 | . 23 . Successful 13 | . 13 . Failed 10 | . 10 . Catastrophic 3 | . 3 . Database Lockouts . | . . . Manual 18 | . 18 . Terminals 17 | . 17 . Fabricators . | . . . Repair Stations 5 | . 5 . Recycling Units 1 | . 1 . Scanalyzers . | . . . Garrison Access . | . . . Terminal Hacks 1 | . 1 . Zone Layout 1 | . 1 . Fabricator Hacks . | . . . Repair Station Hacks 5 | . 5 . Scan Component 2 | . 2 . Repair 2 | . 2 . Refit 1 | . 1 . Recycling Unit Hacks 1 | . 1 . Report Inventory 1 | . 1 . Scanalyzer . | . . . Garrison Access Hacks . | . . . Unauthorized Hacks 6 | . 6 . Terminals 6 | . 6 . Botnet 6 | . 6 . Fabricators . | . . . Repair Stations . | . . . Recycling Units . | . . . Scanalyzers . | . . . Garrison Access . | . . . Data Cores Recovered 1 | . 1 . Used . | . . . Hacking Detections 7 | . 7 . Full Trace Events 1 | . 1 . Feedback Events 1 | . 1 . Corruption 1 | . 1 . Feedback Blocked . | . . . Robot Schematics Acquired . | . . . Robots Built . | . . . Authchips . | . . . Time . | . . . Total Robot Build Rating . | . . . Part Schematics Acquired . | . . . Parts Built . | . . . Authchips . | . . . Time . | . . . Total Part Build Rating . | . . . Parts Repaired 2 | . 2 . Time 52 | . 52 . Parts Recycled . | . . . Recycled Matter . | . . . Retrieved Matter . | . . . Retrieved Components . | . . . Parts Scanalyzed . | . . . Part Schematics Acquired . | . . . Parts Damaged . | . . . Bothacking | -11 -10 -10 ------------ Run | Yrd Mat Sub Used RIF Installer . | . . . Robots Hacked . | . . . Non-combat . | . . . Combat . | . . . Robot Hacks Applied . | . . . Relay Couplers Released . | . . . Fabnet Peak Effective % . | . . . Robots Rewired . | . . . Allies Hacked . | . . . Hacks Repelled . | . . . Allies | -11 -10 -10 -------- Run | Yrd Mat Sub Total Allies . | . . . Largest Group . | . . . Highest-Rated Group . | . . . Highest-Rated Ally . | . . . Total Orders . | . . . Ally Attacks . | . . . Total Damage . | . . . Kills . | . . . Allies Corrupted . | . . . Allies Melted . | . . . Intel | -11 -10 -10 ------- Run | Yrd Mat Sub Robot Analysis Total . | . . . Derelict Logs Recovered . | . . . Drone Launches . | . . . Drone Recoveries . | . . . Exploration | -11 -10 -10 ------------- Run | Yrd Mat Sub Turns Passed 1937 | 148 1241 548 Spaces Moved 1051 | 91 712 248 Core 6 | 6 . . Treads 362 | 85 277 . Legs 683 | . 435 248 Wheels . | . . . Hover . | . . . Flight . | . . . Fastest Speed 50 | 50 120 120 Average Speed 148 | 152 136 182 Slowest Speed 190 | 160 190 190 Overloaded Moves . | . . . Propulsion Burnouts . | . . . Robots Hopped . | . . . Cave-ins Triggered . | . . . Exploration Rate (%) 36 | 4 83 21 Regions Visited 2 Branch Regions 1 Pre-discovered Areas . | . . . Known Exits Taken . | . . . Unknown Exits Taken 2 | 1 1 . Scrap Searched 5 | . . 5 Spaces Dug 13 | . 9 4 Terrain Destroyed 34 | . 9 25 Melee 13 | . 9 4 Projectile . | . . . AOE 21 | . . 21 Terrain Rammed . | . . . Walls Destroyed . | . . . Machines Disabled . | . . . Actions | -11 -10 -10 --------- Run | Yrd Mat Sub Total 1250 | 97 855 298 Wait 69 | . 59 10 Move 1049 | 90 711 248 Hop . | . . . Pick Up 10 | 1 3 6 Fast Attach 13 | 6 6 1 Attach 3 | . . 3 Detach 1 | . 1 . Swap 4 | . 3 1 Drop 3 | . 1 2 Fire 32 | . 30 2 Melee 66 | . 41 25 Ram . | . . . Kick . | . . . Crush . | . . . Escape Stasis . | . . . Rewire . | . . . Trap . | . . . Miscellaneous . | . . . Route ------- -11/Scrapyard -10/Materials (discovered 3 exits: [*Mat x2] / [*Sub]) -10/Subcaves (discovered 1 exit: [*Mat]) History --------- Turn | Location | Event 8 | -11/Scrapyard | Discovered new exit (range 14) 149 | -11/Scrapyard | Entered Materials 302 | -10/Materials | Build established: Mutant 856 | -10/Materials | Discovered new exit (range 7) 903 | -10/Materials | Discovered new exit (range 3) 941 | -10/Materials | Discovered new exit (range 7) 1046 | -10/Materials | Lost 3 parts (1p1n1w) 1202 | -10/Materials | Repaired Aluminum Leg 1228 | -10/Materials | Repaired Hammer 1390 | -10/Materials | Entered Subcaves 1391 | -10/Subcaves | Shifting Twisted Machinery released Sub. Shrapnel Launcher 1543 | -10/Subcaves | Disturbed a concealed Subdweller 1544 | -10/Subcaves | Core integrity fell below 50% 1867 | -10/Subcaves | Shifting Twisted Machinery released Sub. Laser 1875 | -10/Subcaves | Discovered new exit (range 7) 1926 | -10/Subcaves | Ambushed by Subdweller buried in earth 1931 | -10/Subcaves | Shifting Twisted Machinery released Mak. Flight Unit 1931 | -10/Subcaves | Core integrity fell below 20% 1938 | -10/Subcaves | Destroyed by U7-KPV(R) with Subdweller Shrapnel Launcher Last Messages --------------- 01763_ System corrupted: Matter fused (-8). 01799_ Acquired 8 matter. Sub. Laser falls loose from the Twisted Machinery. 01875_ EXIT=FOUND 01883_ Dropped Sml. Storage Unit. 01884_ Dropped Aluminum Leg. 01894_ Acquired Sml. Storage Unit. 01898_ Acquired Mak. Light Armor Plating. 01902_ Acquired Aluminum Leg. 01922_ Sub. Shrapnel Launcher destroyed. 01924_ Ion Engine destroyed. 01927_ FU-FHU(R): "ARGHSUB!" 01928_ Critical hit (Destroy). 01928_ Sub. Shrapnel Launcher destroyed. 01928_ Hammer destroyed. Mak. Flight Unit falls loose from the Twisted Machinery. 01934_ Aluminum Leg destroyed. 01937_ Structural Scanner destroyed. Map ----- +----------------------------------------------------+ | ?????????????????????????????????????????????????? | | ?????????????????????????????????????????????????? | | ?????????????????? ??????????????????????????????? | | ?????????????????? ?????????????????????????????? | | ?????????????????? ?????????????????????????????? | | ???????????????# ????????????????????????????? | | ???????????????#### ????????????????????????????? | | ????????? ?????## ????????????????????????????? | | ?????????? ???? # ???????????????????????????? | | ???????? ?? ## ##???????????????????????????? | | ???????? ### ?? # ########?????????????????????? | | ????????## # ?## ########?????????????????????? | | ????????### ### ### ###????????????????????? | | ????????### ## ###????????????????????? | | ????????## ## ###???????????????????? | | ????????## ####??????????????????? | | ??????##### ;###??????????????????? | | ??????## ##??????????????????? | | ??????## ###?????????????????? | | ??????## R ###?????????????????? | | ??????## ##?????????????????? | | ??????## ;####?????????????????? | | ??????####"" " ##??????????????????? | | ???????#### """ < ;;; ##??????????????????? | | ????????### #### ###;; ##??????????????????? | | ????????? #####[ #####@ ##??????????????????? | | ????????? ??### ##### ="###??????????????????? | | ?????????????## ##?###" #??????????????????? | | ?????????????## "##?### ##??????????????????? | | ?????????????## ######? ##??????????????????? | | ?????????????###### ####[ ##??????????????????? | | ?????????????##### """ ###??????????????????? | | ???????????????### ####""" ###??????????????????? | | ???????????????## #########???????????????????? | | ???????????????### ##?#####???????????????????? | | ???????????????### ##?????????????????????????? | | ???????????????## ####???????????????????????? | | ???????????????### #####??????????????????????? | | ???????????????### ###???????? ?????????????? | | ???????????????### % ###?????? ??????????? | | ???????????????## ####????? ??????????? | | ???????????????## ## ####### ???????????? | | ???????????????## ## ### ## ???????????? | | ???????????????### ## ??????????? | | ???????????????#### [ ??????????? | | ????????????????#### ## ??????????? | | ?????????????????### ## ## ???????????? | | ??????????????????## ## ###??????????????? | | ??????????????????##### ####?????????????? | | ??????????????????##### #####????????????? | +----------------------------------------------------+ Best States ------------- Heat Dissipation 25 Energy Generation 10 Energy Capacity 250 Matter Stores 300 Matter Capacity 300 Sight Range 16 Terrain Scan Density 10 Armor Coverage 80 Evasion (%) 55 Recoil Reduction 2 Item Schematics ----------------- None Robot Schematics ------------------ None Fabricated ------------ Nothing Alien Tech Used ----------------- None Achievements -------------- None Challenges ------------ None Game ------ Seed ParticleTransmissionSink Manual? 0 Play Time 00:16:49 Cumulative 6.3 hours Start 2024.04.08 @ 23:25:16 End 2024.04.08 @ 23:43:45 Sessions 1 Manual Loads 0 Difficulty Rogue Special Mode None Game No. 17 Rogue 15 Adventurer 0 Explorer 2 Win Type - Total 0 Types 0/0/0/0/0/0/0/0/0 Lore% 3 Gallery% 10 Achievement% 13 Wizard Run 0 Options --------- Layout 1 ASCII 0 Keyboard 1 Movement Vi Keybinds 0 Fullscreen 1 Font 32/SmallcapsGlow Map View 50x35 Zoom Use 0% Tactical HUD 1 Map Filters NONE Filters NONE Steam 1 RUN: 89ad1e97-7c1d-4d19-bd3c-879f7f499dc4